fUST/lending_fUST_20260516
["ID","MTS","AMOUNT","RATE_DAILY","PERIOD"]
[422366606,1778881839000,-500.0,0.00010958,2]
[422366607,1778881839000,-808.71,0.00010958,2]
[422366612,1778881839000,-419.39555584,0.00010958,2]
[422366609,1778881839000,-500.0,0.00010958,2]
[422366608,1778881839000,-650.66,0.00010958,2]
[422366610,1778881839000,-1099.8,0.00010958,2]
[422366611,1778881839000,-500.0,0.00010958,2]
[422366613,1778881839000,-648.61,0.00010958,2]
[422366615,1778881839000,-500.0,0.00010958,2]
[422366614,1778881839000,-500.0,0.00010958,2]
[422366562,1778881839000,-500.0,0.00010958,2]
[422366600,1778881839000,-1210.8,0.00010958,2]
[422366599,1778881839000,-1942.82,0.00010958,2]
[422366605,1778881839000,-2038.5,0.00010958,2]
[422366588,1778881839000,-500.0,0.00010958,2]
[422366565,1778881839000,-500.0,0.00010958,2]
[422366591,1778881839000,-1040.1,0.00010958,2]
[422366567,1778881839000,-1805.1,0.00010958,2]
[422366570,1778881839000,-500.0,0.00010958,2]
[422366573,1778881839000,-533.99,0.00010958,2]
[422366575,1778881839000,-500.0,0.00010958,2]
[422366568,1778881839000,-714.77,0.00010958,2]
[422366566,1778881839000,-500.0,0.00010958,2]
[422366572,1778881839000,-1060.16,0.00010958,2]
[422366574,1778881839000,-500.0,0.00010958,2]
[422366571,1778881839000,-764.95,0.00010958,2]
[422366576,1778881839000,-500.0,0.00010958,2]
[422366569,1778881839000,-500.0,0.00010958,2]
[422366585,1778881839000,-4719.03586854,0.00010958,2]
[422366579,1778881839000,-500.0,0.00010958,2]
[422366580,1778881839000,-617.53,0.00010958,2]
[422366581,1778881839000,-1798.89,0.00010958,2]
[422366584,1778881839000,-656.50162157,0.00010958,2]
[422366589,1778881839000,-500.0,0.00010958,2]
[422366586,1778881839000,-818.49,0.00010958,2]
[422366582,1778881839000,-500.0,0.00010958,2]
[422366578,1778881839000,-691.14,0.00010958,2]
[422366587,1778881839000,-7366.12005105,0.00010958,2]
[422366577,1778881839000,-500.0,0.00010958,2]
[422366583,1778881839000,-1997.95605448,0.00010958,2]
[422366658,1778881840000,-1034.69,0.00010958,2]
[422366655,1778881840000,-2153.25,0.00010958,2]
[422366660,1778881840000,-500.0,0.00010958,2]
[422366653,1778881840000,-5636.62,0.00010958,2]
[422366651,1778881840000,-4694.51,0.00010958,2]
[422366652,1778881840000,-5370.03,0.00010958,2]
[422366649,1778881840000,-500.0,0.00010958,2]
[422366657,1778881840000,-500.0,0.00010958,2]
[422366656,1778881840000,-2183.68,0.00010958,2]
[422366659,1778881840000,-500.0,0.00010958,2]
[422366650,1778881840000,-1055.91,0.00010958,2]
[422366616,1778881840000,-1217.93,0.00010958,2]
[422366674,1778881840000,-2034.15,0.00010958,2]
[422366670,1778881840000,-500.0,0.00010958,2]
[422366671,1778881840000,-781.43,0.00010958,2]
[422366662,1778881840000,-500.0,0.00010958,2]
[422366661,1778881840000,-500.0,0.00010958,2]
[422366663,1778881840000,-1787.25,0.00010958,2]
[422366664,1778881840000,-36644.76,0.00010958,2]
[422366668,1778881840000,-1610.25,0.00010958,2]
[422366665,1778881840000,-3075.32,0.00010958,2]
[422366666,1778881840000,-3239.08,0.00010958,2]
[422366667,1778881840000,-500.0,0.00010958,2]
[422366673,1778881840000,-918.94,0.00010958,2]
[422366654,1778881840000,-500.0,0.00010958,2]
[422366669,1778881840000,-7114.84,0.00010958,2]
[422366647,1778881840000,-1751.15,0.00010958,2]
[422366617,1778881840000,-500.0,0.00010958,2]
[422366648,1778881840000,-6552.55,0.00010958,2]
[422366618,1778881840000,-500.0,0.00010958,2]
[422366621,1778881840000,-1784.12,0.00010958,2]
[422366620,1778881840000,-1791.02,0.00010958,2]
[422366619,1778881840000,-2423.36,0.00010958,2]
[422366623,1778881840000,-687.89,0.00010958,2]
[422366624,1778881840000,-5701.98,0.00010958,2]
[422366625,1778881840000,-500.0,0.00010958,2]
[422366629,1778881840000,-2170.01,0.00010958,2]
[422366628,1778881840000,-500.0,0.00010958,2]
[422366627,1778881840000,-500.0,0.00010958,2]
[422366622,1778881840000,-1867.35,0.00010958,2]
[422366626,1778881840000,-500.0,0.00010958,2]
[422366675,1778881840000,-1031.33,0.00010958,2]
[422366630,1778881840000,-1133.51,0.00010958,2]
[422366635,1778881840000,-500.0,0.00010958,2]
[422366639,1778881840000,-1688.95,0.00010958,2]
[422366632,1778881840000,-500.0,0.00010958,2]
[422366638,1778881840000,-1966.52,0.00010958,2]
[422366637,1778881840000,-707.75,0.00010958,2]
[422366642,1778881840000,-2622.53,0.00010958,2]
[422366641,1778881840000,-1970.79,0.00010958,2]
[422366644,1778881840000,-1795.64,0.00010958,2]
[422366640,1778881840000,-500.0,0.00010958,2]
[422366645,1778881840000,-713.72,0.00010958,2]
[422366643,1778881840000,-500.0,0.00010958,2]
[422366646,1778881840000,-1328.28,0.00010958,2]
[422366634,1778881840000,-500.0,0.00010958,2]
[422366672,1778881840000,-1612.13,0.00010958,2]
[422366695,1778881840000,-1272.87,0.00010958,2]
[422366685,1778881840000,-151.0,0.00010958,2]
[422366713,1778881840000,-300.0,0.00011176,2]
[422366720,1778881840000,-1931.3157,0.00011232,2]
[422366712,1778881840000,-300.0,0.00011176,2]
[422366709,1778881840000,-300.0,0.00011176,2]
[422366721,1778881840000,-1337.0752,0.00011232,2]
[422366714,1778881840000,-300.0,0.00011176,2]
[422366711,1778881840000,-300.0,0.00011176,2]
[422366715,1778881840000,-300.0,0.00011176,2]
[422366716,1778881840000,-300.0,0.00011176,2]
[422366719,1778881840000,-500.0,0.00011231,2]
[422366718,1778881840000,-178.52,0.00011179,2]
[422366717,1778881840000,-600.0,0.00011176,2]
[422366710,1778881840000,-300.0,0.00011176,2]
[422366722,1778881840000,-948.15,0.00011232,2]
[422366727,1778881840000,-500.0,0.00011232,2]
[422366723,1778881840000,-500.0,0.00011232,2]
[422366726,1778881840000,-500.0,0.00011232,2]
[422366725,1778881840000,-568.93,0.00011232,2]
[422366728,1778881840000,-500.0,0.00011232,2]
[422366729,1778881840000,-500.0,0.00011232,2]
[422366732,1778881840000,-500.0,0.00011232,2]
[422366731,1778881840000,-500.0,0.00011232,2]
[422366730,1778881840000,-874.29,0.00011232,2]
[422366734,1778881840000,-550.09,0.00011232,2]
[422366733,1778881840000,-500.0,0.00011232,2]
[422366684,1778881840000,-151.0,0.00010958,2]
[422366724,1778881840000,-500.0,0.00011232,2]
[422366706,1778881840000,-300.0,0.00011176,2]
[422366702,1778881840000,-300.0,0.00011176,2]
[422366707,1778881840000,-300.0,0.00011176,2]
[422366679,1778881840000,-500.0,0.00010958,2]
[422366704,1778881840000,-300.0,0.00011176,2]
[422366680,1778881840000,-2309.43,0.00010958,2]
[422366677,1778881840000,-709.2,0.00010958,2]
[422366681,1778881840000,-151.0,0.00010958,2]
[422366678,1778881840000,-5246.7,0.00010958,2]
[422366682,1778881840000,-151.0,0.00010958,2]
[422366676,1778881840000,-2172.83,0.00010958,2]
[422366696,1778881840000,-768.44,0.00010958,2]
[422366686,1778881840000,-2459.35,0.00010958,2]
[422366687,1778881840000,-2907.87,0.00010958,2]
[422366689,1778881840000,-4123.89,0.00010958,2]
[422366688,1778881840000,-500.0,0.00010958,2]
[422366683,1778881840000,-877.7,0.00010958,2]
[422366694,1778881840000,-4615.35,0.00010958,2]
[422366690,1778881840000,-500.0,0.00010958,2]
[422366705,1778881840000,-300.0,0.00011176,2]
[422366703,1778881840000,-300.0,0.00011176,2]
[422366701,1778881840000,-151.0,0.00011111,2]
[422366700,1778881840000,-169.3,0.0001106,2]
[422366699,1778881840000,-300.0,0.00010984,21]
[422366708,1778881840000,-300.0,0.00011176,2]
[422366698,1778881840000,-238.0,0.00010959,3]
[422366697,1778881840000,-500.0,0.00010958,2]
[422366693,1778881840000,-2954.64,0.00010958,2]
[422366692,1778881840000,-500.0,0.00010958,2]
[422366691,1778881840000,-500.0,0.00010958,2]
[422366768,1778881841000,-500.0,0.00011232,2]
[422366762,1778881841000,-1060.16,0.00011232,2]
[422366764,1778881841000,-533.99,0.00011232,2]
[422366766,1778881841000,-500.0,0.00011232,2]
[422366769,1778881841000,-691.14,0.00011232,2]
[422366751,1778881841000,-500.0,0.00011232,2]
[422366767,1778881841000,-500.0,0.00011232,2]
[422366773,1778881841000,-500.0,0.00011232,2]
[422366770,1778881841000,-500.0,0.00011232,2]
[422366771,1778881841000,-617.53,0.00011232,2]
[422366772,1778881841000,-1798.89,0.00011232,2]
[422366774,1778881841000,-818.49,0.00011232,2]
[422366783,1778881841000,-500.0,0.00011232,2]
[422366754,1778881841000,-714.77,0.00011232,2]
[422366765,1778881841000,-500.0,0.00011232,2]
[422366758,1778881841000,-500.0,0.00011232,2]
[422366749,1778881841000,-500.0,0.00011232,2]
[422366756,1778881841000,-500.0,0.00011232,2]
[422366736,1778881841000,-500.0,0.00011232,2]
[422366747,1778881841000,-500.0,0.00011232,2]
[422366780,1778881841000,-500.0,0.00011232,2]
[422366737,1778881841000,-1094.54,0.00011232,2]
[422366735,1778881841000,-500.0,0.00011232,2]
[422366738,1778881841000,-1079.28,0.00011232,2]
[422366760,1778881841000,-764.95,0.00011232,2]
[422366743,1778881841000,-500.0,0.00011232,2]
[422366739,1778881841000,-500.0,0.00011232,2]
[422366744,1778881841000,-500.0,0.00011232,2]
[422366742,1778881841000,-652.72,0.00011232,2]
[422366740,1778881841000,-628.24,0.00011232,2]
[422366741,1778881841000,-753.95,0.00011232,2]
[422366753,1778881841000,-1805.1,0.00011232,2]
[422366745,1778881841000,-500.0,0.00011232,2]
[422366775,1778881841000,-500.0,0.00011232,2]
[422366787,1778881841000,-1942.82,0.00011232,2]
[422366782,1778881841000,-500.0,0.00011232,2]
[422366800,1778881841000,-1002.29303236,0.00011232,2]
[422366809,1778881841000,-500.0,0.00011232,2]
[422366776,1778881841000,-500.0,0.00011232,2]
[422366802,1778881841000,-430.84883804,0.00011232,2]
[422366799,1778881841000,-500.0,0.00010958,2]
[422366801,1778881841000,-500.0,0.00011232,2]
[422366798,1778881841000,-97.50696764,0.00011232,2]
[422366803,1778881841000,-217.76116196,0.00011232,2]
[422366804,1778881841000,-500.0,0.00011232,2]
[422366807,1778881841000,-1217.93,0.00011232,2]
[422366806,1778881841000,-336.74835467,0.00011232,2]
[422366810,1778881841000,-2423.36,0.00011232,2]
[422366812,1778881841000,-1293.61513648,0.00011232,2]
[422366811,1778881841000,-1791.02,0.00011232,2]
[422366805,1778881841000,-163.25164533,0.00011232,2]
[422366796,1778881841000,-650.66,0.00011232,2]
[422366808,1778881841000,-500.0,0.00011232,2]
[422366795,1778881841000,-808.71,0.00011232,2]
[422366779,1778881841000,-500.0,0.00011232,2]
[422366777,1778881841000,-500.0,0.00011232,2]
[422366794,1778881841000,-500.0,0.00011232,2]
[422366778,1778881841000,-1040.1,0.00011232,2]
[422366785,1778881841000,-266.22693226,0.00011232,2]
[422366784,1778881841000,-704.44,0.00011232,2]
[422366786,1778881841000,-233.77306774,0.00011232,2]
[422366781,1778881841000,-519.37,0.00011232,2]
[422366789,1778881841000,-814.09,0.00011232,2]
[422366790,1778881841000,-500.0,0.00011232,2]
[422366791,1778881841000,-500.0,0.00011232,2]
[422366788,1778881841000,-1210.8,0.00011232,2]
[422366793,1778881841000,-2038.5,0.00011232,2]
[422366792,1778881841000,-500.0,0.00011232,2]
[422366797,1778881841000,-500.0,0.00011232,2]
[422366836,1778881846000,-500.0,0.00011232,2]
[422366841,1778881846000,-500.0,0.00011232,2]
[422366844,1778881846000,-1966.52,0.00011232,2]
[422366835,1778881846000,-500.0,0.00011232,2]
[422366832,1778881846000,-687.89,0.00011232,2]
[422366830,1778881846000,-490.50486352,0.00011232,2]
[422366831,1778881846000,-1867.35,0.00011232,2]
[422366833,1778881846000,-5701.98,0.00011232,2]
[422366828,1778881846000,-265.06834216,0.00010958,2]
[422366829,1778881846000,-1654.67,0.00010958,2]
[422366837,1778881846000,-500.0,0.00011232,2]
[422366839,1778881846000,-1133.51,0.00011232,2]
[422366838,1778881846000,-2170.01,0.00011232,2]
[422366852,1778881846000,-501.30194351,0.00011232,2]
[422366849,1778881846000,-500.0,0.00011232,2]
[422366851,1778881846000,-713.72,0.00011232,2]
[422366848,1778881846000,-2622.53,0.00011232,2]
[422366847,1778881846000,-1970.79,0.00011232,2]
[422366850,1778881846000,-1795.64,0.00011232,2]
[422366842,1778881846000,-500.0,0.00011232,2]
[422366843,1778881846000,-707.75,0.00011232,2]
[422366840,1778881846000,-500.0,0.00011232,2]
[422366846,1778881846000,-500.0,0.00011232,2]
[422366845,1778881846000,-1688.95,0.00011232,2]
[422366834,1778881846000,-500.0,0.00011232,2]
[422366858,1778881847000,-4694.51,0.00011232,2]
[422366853,1778881847000,-826.97805649,0.00011232,2]
[422366855,1778881847000,-6552.55,0.00011232,2]
[422366856,1778881847000,-500.0,0.00011232,2]
[422366854,1778881847000,-1751.15,0.00011232,2]
[422366859,1778881847000,-5370.03,0.00011232,2]
[422366861,1778881847000,-500.0,0.00011232,2]
[422366863,1778881847000,-1330.86793306,0.00011232,2]
[422366860,1778881847000,-5636.62,0.00011232,2]
[422366862,1778881847000,-2153.25,0.00011232,2]
[422366857,1778881847000,-1055.91,0.00011232,2]
[422366864,1778882033000,163.670431,9.621e-05,120]
[422366865,1778882379000,336915.31159162,0.0001849,120]
[422366881,1778883032000,-465.8109,7.301e-05,2]
[422366989,1778883038000,-300.0,7.751e-05,2]
[422366993,1778883038000,-300.0,7.751e-05,2]
[422366991,1778883038000,-300.0,7.751e-05,2]
[422366982,1778883038000,-300.0,7.523e-05,2]
[422366957,1778883038000,-1162.36574843,7.301e-05,2]
[422366977,1778883038000,-354.41827983,7.487e-05,2]
[422366975,1778883038000,-5000.0,7.375e-05,2]
[422366973,1778883038000,-3371.82335157,7.301e-05,2]
[422366980,1778883038000,-300.0,7.523e-05,2]
[422366987,1778883038000,-300.0,7.751e-05,2]
[422366986,1778883038000,-8045.82625797,7.6e-05,2]
[422366995,1778883038000,-300.0,7.751e-05,2]
[422366984,1778883038000,-1200.0,7.523e-05,2]
[422367005,1778883038000,-300.0,7.751e-05,2]
[422367015,1778883038000,-300.0,7.751e-05,2]
[422367003,1778883038000,-300.0,7.751e-05,2]
[422367007,1778883038000,-300.0,7.751e-05,2]
[422367009,1778883038000,-300.0,7.751e-05,2]
[422367011,1778883038000,-300.0,7.751e-05,2]
[422367001,1778883038000,-300.0,7.751e-05,2]
[422366997,1778883038000,-300.0,7.751e-05,2]
[422366999,1778883038000,-300.0,7.751e-05,2]
[422367013,1778883038000,-300.0,7.751e-05,2]
[422367086,1778883039000,-500.0,0.00010154,2]
[422367104,1778883039000,-500.0,0.00010154,2]
[422367088,1778883039000,-500.0,0.00010154,2]
[422367090,1778883039000,-500.0,0.00010154,2]
[422367092,1778883039000,-500.0,0.00010154,2]
[422367082,1778883039000,-500.0,0.00010154,2]
[422367100,1778883039000,-500.0,0.00010154,2]
[422367084,1778883039000,-500.0,0.00010154,2]
[422367096,1778883039000,-500.0,0.00010154,2]
[422367098,1778883039000,-500.0,0.00010154,2]
[422367107,1778883039000,-252.175,0.00010216,2]
[422367094,1778883039000,-500.0,0.00010154,2]
[422367102,1778883039000,-500.0,0.00010154,2]
[422367106,1778883039000,-1002.67462182,0.00010156,2]
[422367131,1778883039000,-151.5,0.0001041,2]
[422367111,1778883039000,-877487.96153036,0.00010256,2]
[422367119,1778883039000,-500.0,0.0001041,2]
[422367129,1778883039000,-151.5,0.0001041,2]
[422367127,1778883039000,-175.79440304,0.0001041,2]
[422367133,1778883039000,-500.0,0.0001041,2]
[422367134,1778883039000,-278.61840584,0.0001041,2]
[422367123,1778883039000,-151.5,0.0001041,2]
[422367113,1778883039000,-76123.97234697,0.00010256,2]
[422367115,1778883039000,-500.0,0.0001041,2]
[422367117,1778883039000,-500.0,0.0001041,2]
[422367121,1778883039000,-323.7223841,0.0001041,2]
[422367125,1778883039000,-151.5,0.0001041,2]
[422367080,1778883039000,-500.0,0.00010154,2]
[422367109,1778883039000,-500.0,0.00010254,2]
[422367078,1778883039000,-500.0,0.00010154,2]
[422367037,1778883039000,-500.0,9.424e-05,2]
[422367070,1778883039000,-500.0,0.00010154,2]
[422367136,1778883039000,-500.0,0.0001041,2]
[422367017,1778883039000,-600.0,7.905e-05,2]
[422367019,1778883039000,-420.0,8.275e-05,2]
[422367021,1778883039000,-333.0,8.275e-05,2]
[422367023,1778883039000,-720.0,8.696e-05,2]
[422367025,1778883039000,-220.0,9.103e-05,2]
[422367027,1778883039000,-163.670431,9.263e-05,2]
[422367038,1778883039000,-237.95232198,9.424e-05,2]
[422367029,1778883039000,-500.0,9.424e-05,2]
[422367040,1778883039000,-500.0,9.424e-05,2]
[422367044,1778883039000,-582.61376625,9.424e-05,2]
[422367031,1778883039000,-500.0,9.424e-05,2]
[422367033,1778883039000,-500.0,9.424e-05,2]
[422367042,1778883039000,-500.0,9.424e-05,2]
[422367035,1778883039000,-500.0,9.424e-05,2]
[422367046,1778883039000,-500.0,9.424e-05,2]
[422367048,1778883039000,-500.0,9.424e-05,2]
[422367050,1778883039000,-56975.24689396,9.425e-05,2]
[422367052,1778883039000,-418.2135702,9.487e-05,2]
[422367054,1778883039000,-864.0,9.565e-05,2]
[422367056,1778883039000,-1002.67462182,9.913e-05,2]
[422367058,1778883039000,-1002.67462182,9.974e-05,2]
[422367068,1778883039000,-1002.67462182,0.00010095,2]
[422367064,1778883039000,-16682.30798224,0.0001,2]
[422367072,1778883039000,-500.0,0.00010154,2]
[422367066,1778883039000,-1002.67462182,0.00010035,2]
[422367074,1778883039000,-500.0,0.00010154,2]
[422367062,1778883039000,-51489.77985242,0.0001,2]
[422367060,1778883039000,-2746.99702353,0.0001,2]
[422367076,1778883039000,-338.7675916,0.00010154,2]
[422367138,1778883039000,-500.0,0.0001041,2]
[422367248,1778883039000,-160.0,0.00010633,2]
[422367142,1778883039000,-500.0,0.0001041,2]
[422367223,1778883039000,-151.5,0.0001041,2]
[422367213,1778883039000,-500.0,0.0001041,2]
[422367217,1778883039000,-500.0,0.0001041,2]
[422367227,1778883039000,-537.6845,0.00010502,2]
[422367212,1778883039000,-500.0,0.0001041,2]
[422367231,1778883039000,-1000.0,0.00010522,2]
[422367216,1778883039000,-500.0,0.0001041,2]
[422367229,1778883039000,-537.6845,0.00010502,2]
[422367233,1778883039000,-500.0,0.00010528,2]
[422367235,1778883039000,-557.5788265,0.00010557,2]
[422367237,1778883039000,-578.20924308,0.00010612,2]
[422367239,1778883039000,-315.12276143,0.00010633,2]
[422367241,1778883039000,-160.0,0.00010633,2]
[422367222,1778883039000,-151.5,0.0001041,2]
[422367243,1778883039000,-160.0,0.00010633,2]
[422367249,1778883039000,-599.60298507,0.00010667,2]
[422367251,1778883039000,-160.0,0.00010667,2]
[422367245,1778883039000,-161.65638237,0.00010633,2]
[422367256,1778883039000,-279.60298507,0.00010667,2]
[422367260,1778883039000,-644.79446246,0.00010777,2]
[422367258,1778883039000,-621.78829552,0.00010722,2]
[422367262,1778883039000,-500.0,0.00010802,2]
[422367265,1778883039000,-5142.0,0.00010807,2]
[422367269,1778883039000,-693.3919763,0.00010887,2]
[422367264,1778883039000,-163.0,0.00010807,2]
[422367267,1778883039000,-668.65185757,0.00010832,2]
[422367271,1778883039000,-500.0,0.000109,2]
[422367140,1778883039000,-500.0,0.0001041,2]
[422367254,1778883039000,-160.0,0.00010667,2]
[422367220,1778883039000,-600.68132839,0.0001041,2]
[422367225,1778883039000,-259.03860356,0.0001041,2]
[422367207,1778883039000,-500.0,0.0001041,2]
[422367149,1778883039000,-500.0,0.0001041,2]
[422367144,1778883039000,-500.0,0.0001041,2]
[422367146,1778883039000,-280.06872453,0.0001041,2]
[422367157,1778883039000,-620.69989701,0.0001041,2]
[422367155,1778883039000,-500.0,0.0001041,2]
[422367153,1778883039000,-500.0,0.0001041,2]
[422367151,1778883039000,-500.0,0.0001041,2]
[422367159,1778883039000,-500.0,0.0001041,2]
[422367163,1778883039000,-500.0,0.0001041,2]
[422367210,1778883039000,-500.0,0.0001041,2]
[422367165,1778883039000,-500.0,0.0001041,2]
[422367174,1778883039000,-500.0,0.0001041,2]
[422367167,1778883039000,-500.0,0.0001041,2]
[422367179,1778883039000,-500.0,0.0001041,2]
[422367176,1778883039000,-500.0,0.0001041,2]
[422367161,1778883039000,-500.0,0.0001041,2]
[422367183,1778883039000,-500.0,0.0001041,2]
[422367206,1778883039000,-500.0,0.0001041,2]
[422367181,1778883039000,-202.02008808,0.0001041,2]
[422367193,1778883039000,-500.0,0.0001041,2]
[422367189,1778883039000,-500.0,0.0001041,2]
[422367203,1778883039000,-500.0,0.0001041,2]
[422367187,1778883039000,-500.0,0.0001041,2]
[422367191,1778883039000,-154.55979225,0.0001041,2]
[422367200,1778883039000,-151.5,0.0001041,2]
[422367198,1778883039000,-510.56425253,0.0001041,2]
[422367185,1778883039000,-151.5,0.0001041,2]
[422367195,1778883039000,-590.31882123,0.0001041,2]
[422367197,1778883039000,-500.0,0.0001041,2]
[422367202,1778883039000,-500.0,0.0001041,2]
[422367364,1778883040000,-500.0,0.000109,2]
[422367362,1778883040000,-500.0,0.000109,2]
[422367348,1778883040000,-500.0,0.000109,2]
[422367344,1778883040000,-500.0,0.000109,2]
[422367360,1778883040000,-500.0,0.000109,2]
[422367340,1778883040000,-500.0,0.000109,2]
[422367359,1778883040000,-500.0,0.000109,2]
[422367346,1778883040000,-500.0,0.000109,2]
[422367338,1778883040000,-500.0,0.000109,2]
[422367353,1778883040000,-500.0,0.000109,2]
[422367355,1778883040000,-500.0,0.000109,2]
[422367366,1778883040000,-500.0,0.000109,2]
[422367342,1778883040000,-500.0,0.000109,2]
[422367368,1778883040000,-500.0,0.000109,2]
[422367398,1778883040000,-500.0,0.000109,2]
[422367378,1778883040000,-500.0,0.000109,2]
[422367374,1778883040000,-500.0,0.000109,2]
[422367387,1778883040000,-500.0,0.000109,2]
[422367372,1778883040000,-500.0,0.000109,2]
[422367381,1778883040000,-500.0,0.000109,2]
[422367380,1778883040000,-500.0,0.000109,2]
[422367370,1778883040000,-500.0,0.000109,2]
[422367383,1778883040000,-500.0,0.000109,2]
[422367385,1778883040000,-500.0,0.000109,2]
[422367389,1778883040000,-500.0,0.000109,2]
[422367392,1778883040000,-500.0,0.000109,2]
[422367391,1778883040000,-500.0,0.000109,2]
[422367402,1778883040000,-500.0,0.000109,2]
[422367357,1778883040000,-500.0,0.000109,2]
[422367376,1778883040000,-500.0,0.000109,2]
[422367350,1778883040000,-500.0,0.000109,2]
[422367277,1778883040000,-500.0,0.000109,2]
[422367320,1778883040000,-500.0,0.000109,2]
[422367404,1778883040000,-500.0,0.000109,2]
[422367279,1778883040000,-500.0,0.000109,2]
[422367274,1778883040000,-500.0,0.000109,2]
[422367282,1778883040000,-500.0,0.000109,2]
[422367284,1778883040000,-500.0,0.000109,2]
[422367287,1778883040000,-500.0,0.000109,2]
[422367289,1778883040000,-500.0,0.000109,2]
[422367285,1778883040000,-500.0,0.000109,2]
[422367300,1778883040000,-500.0,0.000109,2]
[422367292,1778883040000,-500.0,0.000109,2]
[422367296,1778883040000,-500.0,0.000109,2]
[422367294,1778883040000,-500.0,0.000109,2]
[422367298,1778883040000,-500.0,0.000109,2]
[422367302,1778883040000,-500.0,0.000109,2]
[422367308,1778883040000,-500.0,0.000109,2]
[422367304,1778883040000,-500.0,0.000109,2]
[422367306,1778883040000,-500.0,0.000109,2]
[422367310,1778883040000,-500.0,0.000109,2]
[422367312,1778883040000,-500.0,0.000109,2]
[422367318,1778883040000,-500.0,0.000109,2]
[422367316,1778883040000,-500.0,0.000109,2]
[422367314,1778883040000,-500.0,0.000109,2]
[422367326,1778883040000,-500.0,0.000109,2]
[422367324,1778883040000,-500.0,0.000109,2]
[422367332,1778883040000,-500.0,0.000109,2]
[422367330,1778883040000,-500.0,0.000109,2]
[422367328,1778883040000,-500.0,0.000109,2]
[422367334,1778883040000,-500.0,0.000109,2]
[422367322,1778883040000,-500.0,0.000109,2]
[422367337,1778883040000,-500.0,0.000109,2]
[422367396,1778883040000,-500.0,0.000109,2]
[422367275,1778883040000,-500.0,0.000109,2]
[422367410,1778883040000,-500.0,0.000109,2]
[422367480,1778883040000,-633.54,0.00010958,2]
[422367485,1778883040000,-500.0,0.00010958,2]
[422367484,1778883040000,-750.29,0.00010958,2]
[422367482,1778883040000,-500.0,0.00010958,2]
[422367467,1778883040000,-214281.76877649,0.000109,2]
[422367489,1778883040000,-746.25,0.00010958,2]
[422367491,1778883040000,-596.44,0.00010958,2]
[422367469,1778883040000,-719.04747942,0.00010942,2]
[422367487,1778883040000,-308.89229027,0.00010958,2]
[422367471,1778883040000,-500.0,0.00010958,2]
[422367473,1778883040000,-500.0,0.00010958,2]
[422367477,1778883040000,-500.0,0.00010958,2]
[422367475,1778883040000,-500.0,0.00010958,2]
[422367492,1778883040000,-181.30995672,0.00010958,2]
[422367478,1778883040000,-500.0,0.00010958,2]
[422367494,1778883040000,-1585.73,0.00010958,2]
[422367498,1778883040000,-500.0,0.00010958,2]
[422367500,1778883040000,-500.0,0.00010958,2]
[422367502,1778883040000,-500.0,0.00010958,2]
[422367503,1778883040000,-500.0,0.00010958,2]